bitfinex-derivatives/quotes_BTCF0:USTF0_20240925
["timestamp","ask_amount","ask_price","bid_price","bid_amount"]
[1727274828008,0.078389,63787.0,63786.0,0.078391]
[1727274828409,0.078389,63787.0,63786.0,0.218391]
[1727274828817,0.078389,63787.0,63786.0,0.219391]
[1727274829118,0.078389,63787.0,63786.0,0.223391]
[1727274829710,0.078389,63787.0,63786.0,0.145]
[1727274829923,0.078389,63787.0,63786.0,0.005]
[1727274830116,0.156778,63787.0,63786.0,0.005]
[1727274830323,0.235167,63787.0,63780.0,0.00235165]
[1727274830519,0.078408,63772.0,63771.0,0.078408]
[1727274831218,0.078409,63771.0,63770.0,0.3608]
[1727274831424,0.218409,63771.0,63766.0,0.078415]
[1727274831622,0.078415,63767.0,63766.0,0.078415]
[1727274831922,0.3488,63767.0,63759.0,0.078423]
[1727274832126,0.3488,63767.0,63758.0,0.39515232]
[1727274832127,0.14,63763.0,63758.0,0.36315232]
[1727274832314,0.078424,63759.0,63758.0,0.36315232]
[1727274832509,0.052424,63759.0,63758.0,0.36315232]
[1727274832913,0.052424,63759.0,63758.0,0.44157732]
[1727274833125,0.078418,63764.0,63758.0,0.50315232]
[1727274833315,0.078413,63769.0,63767.0,0.078414]
[1727274835020,0.078413,63768.0,63767.0,0.078414]
[1727274835324,0.45611798,63775.0,63768.0,0.078413]
[1727274835325,0.002,63769.0,63768.0,0.078413]
[1727274836326,0.001,63769.0,63768.0,0.078413]
[1727274836518,0.001,63769.0,63768.0,0.109613]
[1727274837216,0.44857243,63775.0,63770.0,0.078409]
[1727274837531,0.44857243,63775.0,63771.0,0.14]
[1727274837727,0.44857243,63775.0,63772.0,0.078407]
[1727274837921,0.44857243,63775.0,63771.0,0.14]
[1727274837922,0.3608,63775.0,63774.0,0.078405]
[1727274838621,0.3618,63775.0,63774.0,0.078405]
[1727274838821,0.3628,63775.0,63774.0,0.078405]
[1727274839028,0.002,63775.0,63774.0,0.078405]
[1727274839413,0.002,63775.0,63774.0,0.2542654]
[1727274839414,0.001,63775.0,63774.0,0.2542654]
[1727274839612,0.002,63775.0,63774.0,0.2602654]
[1727274840424,0.002,63775.0,63774.0,1.3306654]
[1727274840425,0.001,63775.0,63774.0,1.3306654]
[1727274840617,0.001,63775.0,63774.0,0.7306654]
[1727274840823,0.001,63775.0,63774.0,1.3306654]
[1727274841030,0.00235258,63785.0,63784.0,0.078393]
[1727274841222,0.00235258,63785.0,63784.0,0.579193]
[1727274841417,0.00235258,63785.0,63784.0,0.218393]
[1727274842121,0.08074458,63785.0,63784.0,0.218393]
[1727274842316,0.08474458,63785.0,63784.0,0.218393]
[1727274842928,0.00635258,63785.0,63784.0,0.218393]
[1727274843125,0.0036,63798.0,63784.0,0.218393]
[1727274843126,0.0036,63798.0,63797.0,0.078377]
[1727274843325,0.38651798,63810.0,63784.0,1.39585677]
[1727274843326,0.078371,63803.0,63795.0,0.14]
[1727274843520,0.078371,63803.0,63802.0,0.14]
[1727274843717,0.078364,63808.0,63802.0,0.14]
[1727274843922,0.3608,63806.0,63802.0,0.218371]
[1727274844439,0.011,63803.0,63802.0,0.218371]
[1727274845131,0.078369,63804.0,63803.0,0.07837]
[1727274845333,0.078369,63804.0,63802.0,0.141]
[1727274845827,0.014,63803.0,63802.0,0.219371]
[1727274846031,0.078373,63800.0,63799.0,0.3608]
[1727274847432,0.078373,63800.0,63794.0,0.0304]
[1727274847433,0.078379,63797.0,63796.0,0.078378]
[1727274848629,0.012,63800.0,63794.0,0.0304]
[1727274848630,0.078379,63795.0,63794.0,0.0304]
[1727274848930,0.078376,63798.0,63794.0,0.2504]
[1727274849133,0.003,63797.0,63796.0,0.078378]
[1727274850723,0.08772168,63806.0,63794.0,0.2504]
[1727274850724,0.078368,63804.0,63801.0,0.078372]
[1727274850937,0.07837,63803.0,63801.0,0.078372]
[1727274851136,0.07837,63803.0,63802.0,0.078371]
[1727274852523,0.09237,63803.0,63802.0,0.078371]
[1727274853429,0.078372,63801.0,63800.0,0.22]
[1727274853733,0.078373,63800.0,63799.0,0.3608]
[1727274854432,0.078373,63800.0,63799.0,0.439175]
[1727274855324,0.095373,63800.0,63799.0,0.440175]
[1727274856126,0.10451708,63800.0,63799.0,0.440175]
[1727274856334,0.10451708,63800.0,63799.0,0.660175]
[1727274856335,0.017,63800.0,63799.0,0.660175]
[1727274859938,0.07836,63811.0,63810.0,0.078361]
[1727274860142,0.07836,63811.0,63810.0,0.298361]
[1727274860332,0.06231798,63824.0,63810.0,0.22]
[1727274860532,0.36532,63827.0,63821.0,0.22]
[1727274860745,0.078345,63824.0,63821.0,0.22]
[1727274860949,0.078345,63824.0,63822.0,0.078345]
[1727274861145,0.078345,63824.0,63821.0,0.22]
[1727274861641,0.37022637,63827.0,63821.0,0.22]
[1727274861843,0.00235075,63835.0,63833.0,0.078332]
[1727274862028,0.00235075,63835.0,63834.0,0.22]
[1727274862437,0.00235075,63835.0,63832.0,0.3608]
[1727274862945,0.078333,63833.0,63832.0,0.3608]
[1727274864746,0.092333,63833.0,63832.0,0.3628]
[1727274866645,0.092333,63833.0,63832.0,0.002]
[1727274866862,0.17023047,63833.0,63832.0,0.002]
[1727274867439,0.11773269,63833.0,63832.0,0.002]
[1727274867741,0.092333,63833.0,63832.0,0.002]
[1727274867947,0.014,63833.0,63832.0,0.080334]
[1727274868148,0.014,63833.0,63832.0,0.002]
[1727274868340,0.092333,63833.0,63832.0,0.002]
[1727274868645,0.014,63833.0,63832.0,0.581134]
[1727274868852,0.07625103,63833.0,63832.0,0.581134]
[1727274869545,0.014,63833.0,63832.0,0.581134]
[1727274871353,0.092333,63833.0,63832.0,0.581134]
[1727274871742,0.092333,63833.0,63832.0,0.142]
[1727274872647,0.092333,63833.0,63832.0,0.002]
[1727274874657,0.24846236,63833.0,63832.0,0.002]
[1727274874958,0.170666,63833.0,63832.0,0.142]
[1727274875462,0.170666,63833.0,63832.0,0.220334]
[1727274875657,0.092333,63833.0,63832.0,0.220334]
[1727274875854,0.092333,63833.0,63832.0,0.142]
[1727274877457,0.092333,63833.0,63832.0,0.002]
[1727274877656,0.092333,63833.0,63832.0,0.080334]
[1727274877961,0.092333,63833.0,63832.0,0.220334]
[1727274878552,0.014,63833.0,63832.0,0.220334]
[1727274880356,0.092333,63833.0,63832.0,0.220334]
[1727274883255,0.014,63833.0,63832.0,0.298668]
[1727274883462,0.0036,63846.0,63836.0,0.078329]
[1727274883654,0.06227233,63847.0,63845.0,0.5008]
[1727274883655,0.0008,63847.0,63845.0,0.5008]
[1727274883855,0.078316,63848.0,63846.0,0.078316]
[1727274884063,0.078316,63847.0,63846.0,0.078316]
[1727274885464,0.078316,63847.0,63841.0,0.0317]
[1727274885465,0.078317,63846.0,63841.0,0.250022]
[1727274885864,0.078322,63842.0,63841.0,0.218322]
[1727274886270,0.078322,63842.0,63841.0,0.078322]
[1727274887154,0.097316,63847.0,63846.0,0.001]
[1727274887453,0.15358833,63847.0,63846.0,0.141]
[1727274887653,0.15358833,63847.0,63846.0,0.658434]
[1727274887654,0.013,63847.0,63846.0,0.658434]
[1727274887853,0.06227233,63855.0,63854.0,0.078307]
[1727274888055,0.3608,63856.0,63854.0,0.14]
[1727274888273,0.0008,63864.0,63861.0,0.078298]
[1727274888455,0.439097,63862.0,63861.0,0.14]
[1727274888855,0.439097,63862.0,63852.0,0.3608]
[1727274888856,0.3608,63862.0,63854.0,0.078306]
[1727274889157,0.091306,63855.0,63854.0,0.001]
[1727274889668,0.15373202,63855.0,63854.0,0.001]
[1727274889863,0.091306,63855.0,63854.0,0.001]
[1727274890453,0.097306,63855.0,63854.0,0.002]
[1727274890657,0.084306,63855.0,63854.0,0.001]
[1727274891067,0.09370207,63855.0,63854.0,0.001]
[1727274891258,0.09470207,63855.0,63854.0,0.002]
[1727274891657,0.17300807,63855.0,63854.0,0.002]
[1727274893174,0.53380807,63855.0,63854.0,0.002]
[1727274894573,0.45550207,63855.0,63854.0,0.002]
[1727274895075,0.53380807,63855.0,63854.0,0.002]
[1727274895370,0.078319,63844.0,63843.0,0.43912]
[1727274895671,0.078311,63851.0,63837.0,0.14]
[1727274895672,0.078323,63841.0,63837.0,0.18656156]
[1727274895861,0.078323,63841.0,63837.0,0.14]
[1727274896554,0.078323,63841.0,63840.0,0.078324]
[1727274896858,0.078329,63836.0,63835.0,0.47043]
[1727274897275,0.078329,63836.0,63835.0,0.3921]
[1727274897455,0.078329,63836.0,63835.0,0.0313]
[1727274897665,0.078329,63836.0,63835.0,0.10963]
[1727274897959,0.078319,63844.0,63843.0,0.078319]
[1727274898162,0.07175736,63847.0,63846.0,0.078317]
[1727274898163,0.00932913,63847.0,63846.0,0.078317]
[1727274898358,0.06242823,63850.0,63846.0,0.218317]
[1727274898756,0.06242823,63850.0,63849.0,0.078313]
[1727274898757,0.14074023,63850.0,63849.0,0.078313]
[1727274898974,0.078312,63850.0,63849.0,0.078313]
[1727274899970,0.00909918,63851.0,63850.0,0.078312]
[1727274900169,0.07831,63852.0,63851.0,0.078311]
[1727274900671,0.00234996,63854.0,63850.0,0.14]
[1727274900862,0.081312,63850.0,63849.0,0.001]
[1727274901061,0.159624,63850.0,63849.0,0.001]
[1727274901261,0.078318,63845.0,63844.0,0.078319]
[1727274901860,0.078327,63838.0,63837.0,0.0329]
[1727274902061,0.14,63839.0,63834.0,0.07833]
[1727274902266,0.06242823,63839.0,63834.0,0.07833]
[1727274902461,0.07833,63835.0,63834.0,0.07833]
[1727274903058,0.3608,63837.0,63831.0,0.00234996]
[1727274903384,0.078334,63832.0,63831.0,0.00234996]
[1727274904061,0.14076223,63832.0,63831.0,0.00234996]
[1727274904668,0.078334,63832.0,63831.0,0.00434996]
[1727274905967,0.15613036,63832.0,63831.0,0.00434996]
[1727274906162,0.23446436,63832.0,63831.0,0.00434996]
[1727274906672,0.23446436,63832.0,63814.0,0.0036]
[1727274906673,0.078351,63818.0,63814.0,0.0036]
[1727274906885,0.078351,63818.0,63813.0,0.078357]
[1727274907171,0.14081144,63818.0,63816.0,0.078354]
[1727274907372,0.078351,63818.0,63816.0,0.078354]
[1727274907764,0.078351,63818.0,63817.0,0.439152]
[1727274907965,0.080351,63818.0,63817.0,0.466152]
[1727274908486,0.080351,63818.0,63817.0,0.3878]
[1727274909175,0.298702,63818.0,63817.0,0.027]
[1727274909668,0.30795201,63818.0,63817.0,0.027]
[1727274910265,0.08960101,63818.0,63817.0,0.027]
[1727274910476,0.06436345,63818.0,63817.0,0.105352]
[1727274910695,0.002,63818.0,63817.0,0.105352]
[1727274913064,0.002,63818.0,63817.0,0.35990902]
[1727274913267,0.002,63818.0,63817.0,1.42998902]
[1727274913567,0.0036,63830.0,63817.0,1.42998902]
[1727274913568,0.0036,63830.0,63829.0,0.078338]
[1727274913772,0.00235088,63831.0,63830.0,0.078336]
[1727274916569,0.0036,63842.0,63835.0,0.07833]
[1727274916763,0.0036,63848.0,63841.0,0.5008]
[1727274916974,0.078313,63850.0,63848.0,0.218314]
[1727274917479,0.3608,63853.0,63848.0,0.218314]
[1727274917480,0.078313,63849.0,63848.0,0.218314]
[1727274917869,0.078313,63849.0,63848.0,0.14]
[1727274918070,0.078317,63846.0,63845.0,0.078318]
[1727274919673,0.089312,63850.0,63847.0,0.078315]
[1727274919879,0.089312,63850.0,63848.0,0.14]
[1727274920186,0.005,63849.0,63848.0,0.218314]
[1727274920777,0.005,63850.0,63849.0,0.078313]
[1727274921379,0.0036,63861.0,63849.0,1.26698507]
[1727274921571,0.0036,63865.0,63860.0,0.5008]
[1727274921768,0.078293,63866.0,63863.0,0.078295]
[1727274922075,0.08773913,63866.0,63864.0,0.078294]
[1727274922272,0.08773913,63866.0,63864.0,0.218294]
[1727274923071,0.0036,63875.0,63874.0,0.078283]
[1727274923294,0.3616,63876.0,63875.0,0.078281]
[1727274923582,0.3608,63876.0,63875.0,0.078281]
[1727274923782,0.07828,63877.0,63875.0,0.078281]
[1727274924292,0.57697556,63887.0,63878.0,0.078278]
[1727274924293,0.00920411,63879.0,63878.0,0.078278]
[1727274924488,0.3608,63884.0,63878.0,0.14]
[1727274924489,0.42316345,63884.0,63878.0,0.14]
[1727274924675,0.42316345,63884.0,63883.0,0.14]
[1727274924676,0.3608,63884.0,63883.0,0.14]
[1727274924984,0.3608,63884.0,63881.0,0.078273]
[1727274925175,0.439071,63884.0,63879.0,0.14]
[1727274925381,0.3608,63884.0,63875.0,0.142]
[1727274925588,0.078278,63878.0,63875.0,0.002]
[1727274925983,0.14,63883.0,63876.0,0.14]
[1727274925984,0.078272,63883.0,63876.0,0.14]
[1727274926280,0.078273,63882.0,63875.0,0.080281]
[1727274926781,0.006,63877.0,63875.0,0.080281]
[1727274926987,0.06236345,63876.0,63875.0,0.001]
[1727274927307,0.06836345,63877.0,63875.0,0.001]
[1727274927596,0.06836345,63877.0,63857.0,0.6826]
[1727274927597,0.078284,63873.0,63865.0,0.11244144]
[1727274927975,0.06206763,63873.0,63865.0,0.00234844]
[1727274928375,0.06206763,63872.0,63865.0,0.00234844]
[1727274928571,0.07829,63868.0,63865.0,0.00234844]
[1727274928888,0.06206763,63871.0,63865.0,0.00234844]
[1727274929180,0.078291,63867.0,63865.0,0.00234844]
[1727274929688,0.078292,63866.0,63865.0,0.00234844]
[1727274929873,0.078292,63866.0,63865.0,0.36314844]
[1727274931288,0.086292,63866.0,63865.0,0.36314844]
[1727274932189,0.086292,63866.0,63865.0,0.08064244]
[1727274933090,0.081292,63866.0,63865.0,0.08064244]
[1727274933391,0.008,63866.0,63865.0,0.08064244]
[1727274933578,0.008,63866.0,63865.0,0.44144244]
[1727274934995,0.086292,63866.0,63865.0,0.44144244]
[1727274935880,0.008,63866.0,63865.0,0.44144244]
[1727274936081,0.003,63866.0,63865.0,0.44144244]
[1727274936287,0.008,63866.0,63865.0,0.44144244]
[1727274936682,0.086292,63866.0,63865.0,0.44144244]
[1727274939797,0.008,63866.0,63865.0,0.44144244]
[1727274940995,0.086292,63866.0,63865.0,0.44144244]
[1727274941791,0.086292,63866.0,63865.0,0.08064244]
[1727274943288,0.09575951,63866.0,63865.0,0.08064244]
[1727274943489,0.09575951,63866.0,63865.0,0.00234844]
[1727274944190,0.09575951,63866.0,63865.0,0.08064244]
[1727274944494,0.09575951,63866.0,63865.0,0.00234844]
[1727274945592,0.17405151,63866.0,63865.0,0.00234844]
[1727274946097,0.23611914,63866.0,63865.0,0.00234844]
[1727274946602,0.17405151,63866.0,63865.0,0.00234844]
[1727274946794,0.17405151,63866.0,63865.0,0.36314844]
[1727274946991,0.008,63866.0,63865.0,0.51973644]
[1727274947490,0.008,63866.0,63865.0,0.44144244]
[1727274948992,0.008,63866.0,63865.0,0.60431908]
[1727274949700,0.008,63866.0,63865.0,0.68261308]
[1727274950403,0.008,63866.0,63865.0,0.60431908]
[1727274951292,0.008,63866.0,63865.0,0.77519851]
[1727274951487,0.008,63866.0,63865.0,0.85284595]
[1727274951693,0.00915637,63878.0,63877.0,0.078279]
[1727274951996,0.0036,63879.0,63877.0,0.078279]
[1727274951997,0.06252177,63879.0,63878.0,0.078278]
[1727274952195,0.139971,63884.0,63880.0,0.078275]
[1727274952401,0.139971,63884.0,63877.0,0.5008]
[1727274952402,0.078272,63883.0,63877.0,0.50172]
[1727274952598,0.06252427,63880.0,63879.0,0.078275]
[1727274952903,0.14885481,63884.0,63880.0,0.078275]
[1727274954000,0.078272,63883.0,63881.0,0.078274]
[1727274954798,0.078272,63883.0,63882.0,0.078273]
[1727274955387,0.078272,63883.0,63879.0,0.002]
[1727274955388,0.14885481,63884.0,63883.0,0.078272]
[1727274955694,0.23012481,63884.0,63883.0,0.078272]
[1727274955994,0.01207925,63884.0,63883.0,0.078272]
[1727274956200,0.07460666,63884.0,63883.0,0.078272]
[1727274956516,0.00907925,63884.0,63883.0,0.157544]
[1727274956724,0.06252741,63886.0,63885.0,0.078269]
[1727274957091,0.078266,63888.0,63887.0,0.078267]
[1727274957402,0.21103333,63888.0,63887.0,0.078267]
[1727274958398,0.21101802,63888.0,63887.0,0.078267]
[1727274958809,0.26270325,63888.0,63887.0,0.078267]
[1727274959107,0.27219906,63888.0,63887.0,0.078267]
[1727274959606,0.16282603,63888.0,63887.0,0.078267]
[1727274959899,0.19811794,63888.0,63887.0,0.079267]
[1727274960111,0.27318216,63888.0,63887.0,0.079267]
[1727274960298,0.27318216,63888.0,63887.0,0.002]
[1727274960299,0.27918216,63888.0,63887.0,0.002]
[1727274960498,0.35744816,63888.0,63887.0,0.002]
[1727274961102,0.3574456,63888.0,63887.0,0.002]
[1727274961403,1.4270056,63888.0,63887.0,0.002]
[1727274961607,0.078276,63880.0,63879.0,0.078276]
[1727274961807,0.1036542,63880.0,63879.0,0.078276]
[1727274962029,0.17200547,63880.0,63879.0,0.078276]
[1727274962214,0.19738367,63880.0,63879.0,0.078276]
[1727274962899,0.19838367,63880.0,63879.0,0.079276]
[1727274963095,0.12610767,63880.0,63879.0,0.080276]
[1727274963300,0.0323782,63880.0,63879.0,0.158552]
[1727274963719,0.10072196,63880.0,63879.0,0.158552]
[1727274963908,0.12610016,63880.0,63879.0,0.158552]
[1727274964511,0.12610016,63880.0,63879.0,0.080276]
[1727274965097,0.007,63880.0,63879.0,0.080276]
[1727274966109,0.01640097,63880.0,63879.0,0.080276]
[1727274967621,0.09467597,63880.0,63879.0,0.080276]
[1727274967803,0.01640097,63880.0,63879.0,0.080276]
[1727274969209,0.007,63880.0,63879.0,0.080276]
[1727274969512,0.06947751,63880.0,63879.0,0.080276]
[1727274970518,0.14775251,63880.0,63879.0,0.080276]
[1727274970815,0.14775251,63880.0,63879.0,0.002]
[1727274970816,0.085275,63880.0,63879.0,0.002]
[1727274972303,0.11065481,63880.0,63879.0,0.002]
[1727274973021,0.32892981,63880.0,63879.0,0.002]
[1727274973214,0.078278,63878.0,63877.0,0.3608]
[1727274973406,0.078287,63870.0,63869.0,0.078288]
[1727274973605,0.078287,63870.0,63869.0,0.078289]
[1727274973606,0.07813374,63870.0,63869.0,0.078289]
[1727274973816,0.07814448,63870.0,63864.0,0.50172]
[1727274974020,0.07814448,63869.0,63864.0,0.36172]
[1727274974216,0.06251418,63869.0,63866.0,0.16838456]
[1727274974414,0.06251418,63871.0,63868.0,0.43909]
[1727274974618,0.07814448,63874.0,63869.0,0.001]
[1727274974619,0.06251418,63870.0,63869.0,0.001]
[1727274974805,0.06951418,63870.0,63869.0,0.001]
[1727274975114,0.72038775,63870.0,63869.0,0.001]
[1727274975317,0.72038775,63870.0,63864.0,0.3608]
[1727274975318,0.078294,63865.0,63864.0,0.3608]
[1727274975614,0.078299,63861.0,63856.0,0.078304]
[1727274975815,0.07817159,63859.0,63857.0,0.078303]
[1727274976213,0.07817159,63859.0,63853.0,0.140608]
[1727274976413,0.07817159,63858.0,63853.0,0.140608]
[1727274976621,0.15647559,63857.0,63854.0,0.439106]
[1727274976810,0.07817159,63857.0,63854.0,0.3608]
[1727274977011,0.07817159,63857.0,63856.0,0.007]
[1727274977310,0.07817159,63857.0,63856.0,0.085305]
[1727274977512,0.07817159,63859.0,63858.0,0.078302]
[1727274978518,0.07817159,63859.0,63858.0,0.14]
[1727274978519,0.06247594,63859.0,63858.0,0.14]
[1727274978731,0.00931072,63865.0,63858.0,0.218302]
[1727274978732,0.06247594,63862.0,63858.0,0.218302]
[1727274979021,0.06247594,63864.0,63861.0,0.14]
[1727274979218,0.06247594,63865.0,63864.0,0.078295]
[1727274979438,0.07817159,63869.0,63867.0,0.07829]
[1727274979439,0.078289,63869.0,63867.0,0.07829]
[1727274979825,0.078289,63869.0,63863.0,0.5018]
[1727274979826,0.078293,63866.0,63863.0,0.580096]
[1727274980010,0.078293,63866.0,63863.0,0.579096]
[1727274980220,0.001,63864.0,63863.0,0.579096]
[1727274980626,0.001,63864.0,63863.0,0.657392]
[1727274981016,0.001,63864.0,63863.0,0.71949911]
[1727274981226,0.001,63864.0,63863.0,0.657392]
[1727274982033,0.002,63865.0,63864.0,0.078295]
[1727274982322,0.002,63865.0,63864.0,0.17149226]
[1727274982521,0.002,63865.0,63864.0,0.18779]
[1727274982724,0.003,63866.0,63865.0,0.156588]
[1727274982930,0.003,63866.0,63865.0,0.517388]
[1727274983124,0.003,63866.0,63865.0,0.439094]
[1727274983316,0.078286,63872.0,63869.0,0.078288]
[1727274983528,0.078286,63872.0,63865.0,0.3608]
[1727274983529,0.078291,63868.0,63865.0,0.48559384]
[1727274983829,0.078292,63867.0,63865.0,0.48559384]
[1727274984029,0.078292,63867.0,63865.0,0.443093]
[1727274984228,0.0326,63875.0,63865.0,0.443093]
[1727274984431,0.078287,63871.0,63865.0,0.3648]
[1727274984737,0.43259664,63877.0,63867.0,0.14]
[1727274985023,0.0875997,63877.0,63873.0,0.3608]
[1727274985423,0.0875997,63877.0,63876.0,0.07828]
[1727274986022,0.0875997,63877.0,63876.0,0.21828]
[1727274986263,0.078275,63881.0,63878.0,0.078277]
[1727274986835,0.08747101,63881.0,63878.0,0.078277]
[1727274987125,0.078276,63879.0,63878.0,0.078277]
[1727274987526,0.078276,63879.0,63878.0,0.080277]
[1727274988629,0.08367195,63881.0,63878.0,0.002]
[1727274988932,0.078276,63879.0,63878.0,0.079278]
[1727274989232,0.012,63879.0,63878.0,0.080278]
[1727274990031,0.009,63879.0,63878.0,0.080278]
[1727274990234,0.078275,63880.0,63878.0,0.080278]
[1727274990828,0.078276,63879.0,63878.0,0.080278]
[1727274991026,0.078276,63879.0,63878.0,0.002]
[1727274991232,0.078276,63879.0,63866.0,0.07820084]
[1727274991233,0.078283,63874.0,63866.0,0.07820084]
[1727274991532,0.078283,63874.0,63868.0,0.078289]
[1727274991730,0.14074423,63874.0,63868.0,0.078289]
[1727274991929,0.078289,63869.0,63868.0,0.078289]
[1727274992120,0.078292,63866.0,63865.0,0.3608]
[1727274992424,0.078292,63866.0,63865.0,0.439094]
[1727274993737,0.081292,63866.0,63865.0,0.439094]
[1727274994228,0.081292,63866.0,63860.0,0.07650084]
[1727274994229,0.078297,63863.0,63862.0,0.078296]
[1727274994630,0.10368328,63863.0,63862.0,0.078296]
[1727274994933,0.078297,63863.0,63862.0,0.078296]
[1727274995331,0.080297,63863.0,63862.0,0.078296]
[1727274995529,0.0783,63860.0,63859.0,0.439101]
[1727274996339,0.07809803,63862.0,63861.0,0.078298]
[1727274996528,0.15639503,63863.0,63861.0,0.078298]
[1727274996725,0.07809803,63863.0,63862.0,0.218297]
[1727274996944,0.07809803,63866.0,63862.0,0.14]
[1727274997141,0.06247407,63864.0,63862.0,0.14]
[1727274998230,0.06247407,63864.0,63863.0,0.078296]
[1727274998428,0.15639003,63867.0,63865.0,0.078293]
[1727274998633,0.078297,63863.0,63862.0,0.078296]
[1727274998834,0.0938059,63866.0,63859.0,0.4391]
[1727274999036,0.07811616,63863.0,63859.0,0.4391]
[1727274999245,0.0783,63860.0,63859.0,0.3608]
[1727274999825,0.0783,63860.0,63859.0,0.439101]
[1727275000031,0.15641316,63862.0,63861.0,0.078298]
[1727275000233,0.078297,63862.0,63861.0,0.078298]
[1727275000734,0.15641316,63862.0,63861.0,0.078298]
[1727275000941,0.07811616,63862.0,63861.0,0.078298]
[1727275001139,0.15641316,63862.0,63861.0,0.078298]
[1727275001436,0.002,63864.0,63859.0,0.3608]
[1727275001437,0.08011616,63864.0,63859.0,0.3608]
[1727275001637,0.07811616,63864.0,63861.0,0.001]
[1727275001841,0.07811616,63863.0,63862.0,0.078297]
[1727275002331,0.07811616,63864.0,63863.0,0.078296]
[1727275002640,0.078291,63868.0,63867.0,0.078291]
[1727275003138,0.08754959,63868.0,63867.0,0.078291]
[1727275003840,0.09254959,63868.0,63867.0,0.078291]
[1727275004634,0.005,63868.0,63867.0,0.26478243]
[1727275005236,0.005,63868.0,63867.0,0.218291]
[1727275005943,0.009,63868.0,63867.0,0.219291]
[1727275007131,0.009,63868.0,63867.0,0.297582]
[1727275007338,0.009,63868.0,63867.0,0.28128834]
[1727275007534,0.009,63868.0,63867.0,0.219291]
[1727275008238,0.009,63868.0,63867.0,0.22838005]
[1727275008441,0.009,63868.0,63867.0,0.30667105]
[1727275009646,0.0036,63877.0,63876.0,0.07828]
[1727275009847,0.06250477,63884.0,63883.0,0.078272]
[1727275010052,0.07180732,63884.0,63883.0,0.078272]
[1727275010248,0.078273,63882.0,63879.0,0.04643121]
[1727275010448,0.078273,63882.0,63881.0,0.078274]
[1727275010951,0.078276,63879.0,63878.0,0.078278]
[1727275011542,0.06251585,63883.0,63880.0,0.078275]
[1727275011744,0.078274,63881.0,63880.0,0.078275]
[1727275012846,0.078274,63881.0,63880.0,0.079275]
[1727275013554,0.079274,63881.0,63880.0,0.080275]
[1727275017251,0.001,63881.0,63880.0,0.080275]
[1727275018257,0.079274,63881.0,63880.0,0.080275]
[1727275020649,0.297548,63881.0,63880.0,0.002]
[1727275020862,0.24465333,63881.0,63880.0,0.002]
[1727275021057,0.10465333,63881.0,63880.0,0.002]
[1727275021353,0.10465333,63881.0,63880.0,0.080275]
[1727275022544,0.10465333,63881.0,63880.0,0.002]
[1727275022857,0.079274,63881.0,63880.0,0.002]
[1727275023243,0.10465305,63881.0,63880.0,0.080275]
[1727275023482,0.079274,63881.0,63880.0,0.080275]
[1727275024060,0.001,63881.0,63880.0,0.220275]
[1727275024248,0.001,63881.0,63880.0,0.112075]
[1727275024557,0.079274,63881.0,63880.0,0.112075]
[1727275024771,0.001,63881.0,63880.0,0.112075]
[1727275025547,0.079274,63881.0,63880.0,0.080275]
[1727275026761,0.001,63881.0,63880.0,0.080275]
[1727275031556,0.06344314,63881.0,63880.0,0.080275]
[1727275032554,0.02637814,63881.0,63880.0,0.080275]
[1727275033263,0.10465214,63881.0,63880.0,0.080275]
[1727275033567,0.19845804,63881.0,63880.0,0.080275]
[1727275033963,0.10465278,63881.0,63880.0,0.080275]
[1727275034469,0.10465278,63881.0,63880.0,0.002]
[1727275035470,0.10465278,63881.0,63880.0,0.080275]
[1727275035659,0.23275695,63881.0,63880.0,0.002]
[1727275036364,0.10465278,63881.0,63880.0,0.080275]
[1727275036663,0.2328111,63881.0,63880.0,0.002]
[1727275037465,0.1545371,63881.0,63880.0,0.002]
[1727275037970,0.1545371,63881.0,63880.0,0.080275]
[1727275038564,0.15444105,63881.0,63880.0,0.080275]
[1727275039555,0.10465353,63881.0,63880.0,0.080275]
[1727275043273,0.079274,63881.0,63880.0,0.080275]
[1727275043578,0.10465331,63881.0,63880.0,0.080275]
[1727275044872,0.10465331,63881.0,63880.0,0.002]
[1727275045081,0.19465331,63881.0,63880.0,0.002]
[1727275047169,0.19465331,63881.0,63880.0,0.080275]
[1727275047575,0.24440918,63881.0,63880.0,0.080275]
[1727275047766,0.35376531,63881.0,63880.0,0.080275]
[1727275049076,0.56807419,63881.0,63880.0,0.002]
[1727275049376,0.88485683,63881.0,63880.0,0.002]
[1727275049566,0.94679828,63881.0,63880.0,0.002]
[1727275049774,0.38044406,63881.0,63880.0,0.002]
[1727275050270,0.38044406,63881.0,63880.0,0.080275]
[1727275050271,0.21205734,63881.0,63880.0,0.080275]
[1727275050479,0.30205734,63881.0,63880.0,0.002]
[1727275050775,0.35397546,63881.0,63880.0,0.002]
[1727275051989,0.35397546,63881.0,63880.0,0.080275]
[1727275052478,0.26397546,63881.0,63880.0,0.080275]
[1727275054778,0.10465331,63881.0,63880.0,0.080275]
[1727275057581,0.10465387,63881.0,63880.0,0.080275]
[1727275057976,0.18292787,63881.0,63880.0,0.002]
[1727275058172,0.32292787,63881.0,63880.0,0.002]
[1727275058375,0.24465387,63881.0,63880.0,0.002]
[1727275059280,0.24465387,63881.0,63880.0,0.080275]
[1727275060298,0.18783028,63890.0,63880.0,0.080275]
[1727275060299,0.09390764,63885.0,63884.0,0.07827]
[1727275060469,0.06259638,63887.0,63886.0,0.078268]
[1727275060780,0.06259638,63889.0,63888.0,0.078265]
[1727275061084,0.078264,63890.0,63889.0,0.078264]
[1727275062185,0.083264,63890.0,63889.0,0.079264]
[1727275062487,0.083264,63890.0,63889.0,0.080264]